Cogmind - Beta 14 @@@ ROGUE MODE // 2024.10.28 @ 18:16:46 Player: Kate+Gabe4evr Result: Destroyed by S-10 Pest with Light Assault Rifle Performance ------------- Evolutions (2) 1000 Regions Visited (3) 600 Robots Destroyed (75) 375 Value Destroyed (2109) 2109 Prototype IDs (0) 0 Alien Tech Used (0) 0 Bonus (244) 244 TOTAL SCORE: 4328 Bonus ------- High Alert Combat Kills 244 Cogmind --------- Core Integrity 0/550 Matter 300/300 Energy 125/125 System Corruption 3% Temperature Cool (12) Movement Treading (160) Location -8/Materials Parts ------- > --- POWER (1) -------- Light Ion Engine > --- PROPULSION (4) --- Light Treads Light Treads > --- UTILITY (4) ------ Medium Storage Unit Signal Interpreter > --- WEAPON (2) ------- Particle Gun > --- INVENTORY (10) --- Improved Sensor Array Plasma Cutter Maul Peak State ------------ > --- POWER ------------ Light Angular Momentum Engine > --- PROPULSION ------- Aluminum Leg Carbon-fiber Leg > --- UTILITY ---------- Improved Heat Sink Medium Storage Unit Signal Interpreter Medium Armor Plating > --- WEAPON ----------- Ion Cannon Autogun > --- INVENTORY -------- Light Nuclear Core Light Nuclear Core Improved Heat Sink Small Storage Unit Ion Cannon Improved Light Cannon Rocket Launcher Plasma Cutter Maul [Rating: 23] Favorites ----------- Power Nuclear Core Engine Ion Engine Power Core Nuclear Core Propulsion Advanced Treads Treads Advanced Treads Leg Aluminum Leg Utility Signal Interpreter Device Heat Sink Storage Small Storage Unit Processor Signal Interpreter Protection Medium Armor Plating Weapon Ion Cannon Energy Gun Small Laser Energy Cannon Ion Cannon Ballistic Gun Autogun Ballistic Cannon Improved Light Cannon Launcher Rocket Launcher Impact Weapon Maul Build | -11 -10 -9 -8 ------- Run | Yrd Mat Mat Mat Slots Evolved 4 | . . 2 2 Power . | . . . . Propulsion 2 | . . . 2 Utility 2 | . . 2 . Weapon . | . . . . Parts Attached 65 | 6 6 24 29 Power 10 | 1 1 2 6 Engine 5 | 1 1 . 3 Core 5 | . . 2 3 Reactor . | . . . . Propulsion 17 | 2 1 6 8 Treads 8 | . . 6 2 Leg 9 | 2 1 . 6 Wheel . | . . . . Hover . | . . . . Flight . | . . . . Utility 12 | 1 1 4 6 Device 6 | . . 2 4 Storage 3 | 1 . 1 1 Processor 1 | . 1 . . Hackware . | . . . . Protection 2 | . . 1 1 Artifact . | . . . . Weapon 26 | 2 3 12 9 Energy Gun 7 | 1 2 1 3 Energy Cannon 6 | . . 4 2 Ballistic Gun 9 | 1 1 6 1 Ballistic Cannon 1 | . . . 1 Launcher 2 | . . 1 1 Special Weapon . | . . . . Impact Weapon 1 | . . . 1 Slashing Weapon . | . . . . Piercing Weapon . | . . . . Special Melee Weapon . | . . . . Unidentified Prototypes . | . . . . Corrupted Parts 1 | . . . 1 System Corruption 3 | . . . 3 Parts Lost 29 | . . 6 23 Power 5 | . . 1 4 Propulsion 10 | . . 4 6 Utility 6 | . . 1 5 Weapon 8 | . . . 8 Highest Loss Streak 16 | . . 2 16 To Critical Strikes 1 | . . . 1 Average Slot Usage (%) 83 | . 90 90 68 Engine 4 | . 14 1 4 Core 6 | . . 9 2 Treads 10 | . . 18 2 Leg 8 | . 28 1 12 Device 8 | . . 10 8 Storage 12 | . 14 14 9 Processor 9 | . 5 11 9 Protection 2 | . . 1 3 Energy Gun 3 | . 14 1 . Energy Cannon 6 | . . 7 6 Ballistic Gun 10 | . 14 12 6 Peak Build Rating 23 | 6 7 20 23 Average Rating 15 | 4 6 17 16 On Entrance 7 | . 6 7 17 Naked Turns . | . . . . Heaviest Build 102 | 12 12 102 102 Greatest Support 45 | 20 20 44 45 Greatest Overweight (x) 9 | 3 . 4 9 Average Overweight (x) . | . . . . Largest Inventory Capacity 25 | 8 8 25 25 Average Capacity 11 | 7 8 12 10 Most Carried 10 | 1 8 10 10 Average Carried 7 | . 4 8 6 Final Capacity 25 | 8 8 25 10 Final Carried 10 | 1 8 10 3 Class Distribution -------------------- 90% | Mutant 9% | Scavenger-Mutant Dominant Class ---------------- Mutant | -10/Materials Mutant | -9/Materials Mutant | -8/Materials Resources | -11 -10 -9 -8 ----------- Run | Yrd Mat Mat Mat Matter Collected 1427 | 244 93 558 532 Remotely . | . . . . Salvage Created 2559 | . 208 1075 1276 Parts 146 | . 16 75 55 Haulers Intercepted 1 | . . 1 . Recyclers Shooed 2 | . 1 . 1 Parts Field Recycled . | . . . . Retrieved Matter . | . . . . Parts Self-Destructed . | . . . . Prevented . | . . . . Kills | -11 -10 -9 -8 ------- Run | Yrd Mat Mat Mat Combat Hostiles Destroyed 62 | . 9 33 20 Melee 1 | . . . 1 Guns 36 | . 9 22 5 Cannons 20 | . . 8 12 AOE 4 | . . 3 1 Classes Destroyed 10 | . 2 4 4 Worker 2 | . . . 2 Builder 2 | . . 1 1 Tunneler 2 | . . 2 . Hauler 1 | . . 1 . Recycler 5 | . . . 5 Watcher 1 | . . . 1 Swarmer 21 | . 6 15 . Grunt 31 | . 3 11 17 Duelist 1 | . . . 1 Sentry 9 | . . 7 2 Best Kill Streak 15 | . 6 7 15 Combat Bots Only 8 | . 6 5 8 Max Kills in Single Turn 3 | . 2 3 2 Gunslinging 1 | . 1 1 . Exploded 1 | . . 1 1 Melee 1 | . . . 1 Uniques/NPCs Destroyed . | . . . . Combat | -11 -10 -9 -8 -------- Run | Yrd Mat Mat Mat Hostile Shots Fired 466 | . 49 191 226 Missed 133 | . 13 42 78 Damage Taken 4431 | . 328 1737 2366 Core 845 | . 71 217 557 Absorbed by Shields . | . . . . Core Remaining (%) 72 | 100 71 45 . Volleys Fired 200 | . 30 92 78 Largest 2 | . 2 2 2 Hottest 104 | . 60 83 104 Shots Fired 376 | . 59 182 135 Gun 251 | . 59 139 53 Cannon 114 | . . 38 76 Launcher 11 | . . 5 6 Special . | . . . . Kinetic 221 | . 30 129 62 Thermal 144 | . 29 48 67 Explosive 11 | . . 5 6 Electromagnetic . | . . . . Robot Hit Streak 16 | . 8 16 9 Robot Miss Streak 5 | . 5 4 5 Penetration Max . | . . . . Secondary Targets 4 | . 3 1 . Max Gunslinging Chain 1 | . 1 1 . Shots Hit Robots 250 | . 31 125 94 Core Hits 124 | . 14 59 51 Critical Kills 3 | . . 2 1 Critical Parts Destroyed 1 | . . . 1 Critical Strikes 5 | . . 2 3 Destroy 2 | . . 2 . Blast 1 | . . . 1 Smash 2 | . . . 2 Melee Attacks 6 | . . . 6 Impact 6 | . . . 6 Slashing . | . . . . Piercing . | . . . . Sneak Attacks . | . . . . Combat Hostiles . | . . . . Follow-up Attacks . | . . . . Damage Inflicted 4850 | . 310 2133 2407 Guns 2119 | . 306 1177 636 Cannons 1833 | . . 625 1208 Explosions 661 | . . 303 358 Melee 205 | . . . 205 Ramming 32 | . 4 28 . Kinetic 2016 | . 121 1076 819 Thermal 1936 | . 185 726 1025 Explosive 661 | . . 303 358 Electromagnetic . | . . . . Impact 205 | . . . 205 Slashing . | . . . . Piercing . | . . . . Highest Corruption 3 | . . . 3 Average Corruption 3 | . . . 3 Corruption Purged . | . . . . Corruption Blocked . | . . . . Effects 2 | . . . 2 Message Errors 1 | . . . 1 Energy Discharges 1 | . . . 1 Overload Shots . | . . . . Overflow Damage 101 | . . 26 75 Projectiles 13 | . . . 13 Explosions 33 | . . 26 7 Melee 55 | . . . 55 Knockbacks 9 | . . . 9 Impact . | . . . . Kinetic 8 | . . . 8 Secondary 1 | . . . 1 Self-Inflicted Damage 23 | . . . 23 Shots 1 | . . . 1 Rammed 7 | . . 7 . Targets Rammed 8 | . 1 7 . Kicked 1 | . 1 . . Crushed . | . . . . Highest Temperature 216 | . 158 90 216 Average Temperature 48 | . 51 24 71 Received Heat Transfer 2070 | . 90 630 1350 Effects 1 | . . . 1 Interference 1 | . . . 1 Siege Activations . | . . . . Robots Corrupted 1 | . . . 1 Combat Hostiles 1 | . . . 1 Parts Fried . | . . . . Impact Corruptions 4 | . . . 4 Robots Melted . | . . . . Combat Hostiles . | . . . . Parts Melted 7 | . . 5 2 Heat Transferred 3388 | . 425 1224 1739 Parts Sabotaged . | . . . . Parts Stolen . | . . . . Parts Stripped . | . . . . Power Chain Reactions . | . . . . Alert | -11 -10 -9 -8 ------- Run | Yrd Mat Mat Mat Peak Influence 845 | . 255 845 494 Initial 309 | . . 107 309 Average 399 | . 118 498 388 Maximum Alert Level 3 | . 1 3 2 Low Security (%) 22 | 100 82 15 . Level 1 27 | . 17 21 42 Level 2 37 | . . 37 57 Level 3 13 | . . 25 . Level 4 . | . . . . Level 5 . | . . . . High Security . | . . . . Max Security . | . . . . Squads Dispatched 7 | . 1 3 3 Investigation 2 | . . 1 1 Extermination . | . . . . Reinforcement 4 | . 1 1 2 Assault 1 | . . 1 . Garrison . | . . . . Intercept . | . . . . Searches Triggered . | . . . . Construction Impeded . | . . . . Haulers Reinforced . | . . . . Active Scanning Responses . | . . . . Cargo Convoy Interrupts . | . . . . Stealth | -11 -10 -9 -8 --------- Run | Yrd Mat Mat Mat Distress Signals 8 | . 1 4 3 Communications Jammed . | . . . . Distress Signals . | . . . . Times Spotted 102 | . 13 58 31 Peak Tracking Total 9 | . 6 6 9 Tactical Retreats 4 | . . 4 . Traps | -11 -10 -9 -8 ------- Run | Yrd Mat Mat Mat Traps Triggered 3 | . . 2 1 Indirectly . | . . . . Trap Hack Attempts . | . . . . Triggered . | . . . . Disarmed . | . . . . Reprogrammed . | . . . . Reused . | . . . . Traps Extracted . | . . . . Installed . | . . . . Triggered . | . . . . Machines | -11 -10 -9 -8 ---------- Run | Yrd Mat Mat Mat Machines Disabled 6 | . . 2 4 Max in Single Turn 2 | . . 1 2 Machines Repaired . | . . . . Machines Dismantled . | . . . . Machines Sabotaged . | . . . . Overloaded Fab Kills . | . . . . Hacking | -11 -10 -9 -8 --------- Run | Yrd Mat Mat Mat Machines Accessed . | . . . . Terminals . | . . . . Fabricators . | . . . . Repair Stations . | . . . . Recycling Units . | . . . . Scanalyzers . | . . . . Garrison Access . | . . . . Total Hacks . | . . . . Successful . | . . . . Failed . | . . . . Catastrophic . | . . . . Database Lockouts . | . . . . Manual . | . . . . Terminals . | . . . . Fabricators . | . . . . Repair Stations . | . . . . Recycling Units . | . . . . Scanalyzers . | . . . . Garrison Access . | . . . . Terminal Hacks . | . . . . Fabricator Hacks . | . . . . Repair Station Hacks . | . . . . Recycling Unit Hacks . | . . . . Scanalyzer . | . . . . Garrison Access Hacks . | . . . . Unauthorized Hacks . | . . . . Terminals . | . . . . Fabricators . | . . . . Repair Stations . | . . . . Recycling Units . | . . . . Scanalyzers . | . . . . Garrison Access . | . . . . Data Cores Recovered . | . . . . Used . | . . . . Hacking Detections . | . . . . Full Trace Events . | . . . . Feedback Events . | . . . . Feedback Blocked . | . . . . Robot Schematics Acquired . | . . . . Robots Built . | . . . . Authchips . | . . . . Time . | . . . . Total Robot Build Rating . | . . . . Part Schematics Acquired . | . . . . Parts Built . | . . . . Authchips . | . . . . Time . | . . . . Total Part Build Rating . | . . . . Parts Repaired . | . . . . Time . | . . . . Parts Recycled . | . . . . Recycled Matter . | . . . . Retrieved Matter . | . . . . Retrieved Components . | . . . . Parts Scanalyzed . | . . . . Part Schematics Acquired . | . . . . Parts Damaged . | . . . . Bothacking | -11 -10 -9 -8 ------------ Run | Yrd Mat Mat Mat Used RIF Installer . | . . . . Robots Hacked . | . . . . Non-combat . | . . . . Combat . | . . . . Robot Hacks Applied . | . . . . Relay Couplers Released . | . . . . Fabnet Peak Effective % . | . . . . Robots Rewired . | . . . . Allies Hacked . | . . . . Hacks Repelled . | . . . . Allies | -11 -10 -9 -8 -------- Run | Yrd Mat Mat Mat Total Allies . | . . . . Largest Group . | . . . . Highest-Rated Group . | . . . . Highest-Rated Ally . | . . . . Total Orders . | . . . . Ally Attacks . | . . . . Total Damage . | . . . . Kills . | . . . . Allies Corrupted . | . . . . Allies Melted . | . . . . Intel | -11 -10 -9 -8 ------- Run | Yrd Mat Mat Mat Robot Analysis Total . | . . . . Derelict Logs Recovered . | . . . . Drone Launches . | . . . . Drone Recoveries . | . . . . Exploration | -11 -10 -9 -8 ------------- Run | Yrd Mat Mat Mat Turns Passed 2363 | 53 338 1260 712 Spaces Moved 912 | 36 201 465 210 Core 21 | 8 . . 13 Treads 501 | . . 449 52 Legs 390 | 28 201 16 145 Wheels . | . . . . Hover . | . . . . Flight . | . . . . Fastest Speed 50 | 50 120 120 120 Average Speed 170 | 121 120 187 189 Slowest Speed 500 | 200 120 465 500 Overloaded Moves . | . . . . Propulsion Burnouts . | . . . . Robots Hopped . | . . . . Cave-ins Triggered . | . . . . Exploration Rate (%) 28 | 4 38 49 24 Regions Visited 3 Branch Regions . Pre-discovered Areas . | . . . . Known Exits Taken 2 | . 1 1 . Unknown Exits Taken 1 | 1 . . . Scrap Searched . | . . . . Spaces Dug . | . . . . Terrain Destroyed 70 | . . 47 23 Melee . | . . . . Projectile 9 | . . 3 6 AOE 61 | . . 44 17 Terrain Rammed . | . . . . Walls Destroyed . | . . . . Machines Disabled . | . . . . Actions | -11 -10 -9 -8 --------- Run | Yrd Mat Mat Mat Total 1358 | 42 241 695 380 Wait 117 | . 2 72 43 Move 910 | 35 200 465 210 Hop . | . . . . Pick Up 26 | 1 2 16 7 Fast Attach 26 | 6 1 7 12 Attach 18 | . . 4 14 Detach 3 | . . . 3 Swap 21 | . 5 13 3 Drop 24 | . . 20 4 Fire 200 | . 30 92 78 Melee 6 | . . . 6 Ram . | . . . . Kick 1 | . 1 . . Crush 6 | . . 6 . Escape Stasis . | . . . . Rewire . | . . . . Trap . | . . . . Miscellaneous . | . . . . Route ------- -11/Scrapyard -10/Materials (discovered 2 exits: *Mat / [*Min]) -9/Materials -8/Materials History --------- Turn | Location | Event 26 | -11/Scrapyard | Discovered new exit (range 15) 54 | -11/Scrapyard | Entered Materials 301 | -10/Materials | Discovered new exit (range 13) 307 | -10/Materials | Build established: Mutant 360 | -10/Materials | Discovered new exit (range 13) 378 | -10/Materials | Identified exit to Materials 392 | -10/Materials | Entered another Materials area 392 | -9/Materials | Evolved 2 slots: Utility x2 1454 | -9/Materials | Core integrity fell below 50% 1582 | -9/Materials | Discovered new exit (range 15) 1592 | -9/Materials | First assault squad dispatched 1647 | -9/Materials | Identified exit to Materials 1652 | -9/Materials | Entered another Materials area 1652 | -8/Materials | Evolved 2 slots: Propulsion x2 1751 | -8/Materials | Lost 5 parts (1p1n1u2w) 2186 | -8/Materials | Core integrity fell below 50% 2234 | -8/Materials | Core integrity fell below 20% 2242 | -8/Materials | Destroyed 8 combat bots 2277 | -8/Materials | Lost 16 parts (2p5n3u6w) 2364 | -8/Materials | Destroyed by S-10 Pest with Light Assault Rifle Last Messages --------------- 02301_ Acquired 50 matter. 02309_ Acquired 30 matter. 02310_ Acquired 26 matter. 02313_ R-06 Scavenger collects Lgt. Treads. 02317_ Acquired Lgt. Ion Engine. 02317_ R-06 Scavenger collects Lgt. Treads. 02320_ Acquired Particle Gun. 02322_ Q&IOCF/OEQR9<3V&Q:4&/3OPND5TWCNE#7VOSLZ 02322_ R-06 Scavenger collects Lgt. Armor Plating. 02322_ R-06 Scavenger collects Sml. Storage Unit. 02325_ Acquired 43 matter. 02326_ R-06 Scavenger collects Corrupted Beam Rifle. 02326_ R-06 Scavenger collects Particle Gun. 02332_ R-06 Scavenger collects Hvy. Assault Rifle. 02332_ R-06 Scavenger collects Wheel. 02334_ Acquired 28 matter. 02335_ R-06 Scavenger collects Lgt. Ion Engine. 02338_ R-06 Scavenger collects Com. Wheel. 02340_ K-01 Serf collects debris. 02363_ K-01 Serf destroyed. Map ----- +----------------------------------------------------+ | ?????????????????????????????????????????????????? | | ?????????????????????????????????????????????????? | | ?????????????????????????????????????????????????? | | ?????????????????????????????????????????????????? | | ?????????????????????????????????????????????????? | | ?????????????????????????????????????????????????? | | ?????????????????????????????????????????????????? | | ?????????????????????????????????????????????????? | | ?????????????????????????????????????????????????? | | ?????????????????????????????????????????????????? | | ?????????????????????????????????????????????????? | | ?????????????????????????????????????????????????? | | ??????????????????????????#??????????????????????? | | ??????????????????????? #??????????????????????? | | ???????????????????????"" #??????????????????????? | | ????????????????????? "T" #??????????????????????? | | ???????????????????? ???????????????????????? | | ??????????????????? ]???????????????????????? | | ????????????????????""" ????????????????????????? | | ????????????????????""" ????????????????????????? | | ?????????????????????"" ?????????????????????????? | | ????????????????????? ?????????????????????????? | | ???????????????????###+###???????????????????????? | | ??? ###+########## ##########+##???????????? | | ??? a *%! s ????????? | | ??? @ s ????????? | | ??? uu u su ????????? | | ??????##########% t# = #####+#######???????????? | | ??????# ??# #######???????????????????????? | | ????? # ??# %%#?????????????????????????????? | | ????=!+ ?#% %#?????????????????????????????? | | ????*%# ?# #?????????????????????????????? | | ?# !%####### ## % #?????????????????????????????? | | ?# ### ####! #?????????????????????????????? | | ?# %== % #?###?????????? #????????????? | | ?# ! = !% ###T##### !#????????????? | | ?+ + #????????????? | | ?# ##" ##########????????????????? | | ?# " "" ##"T#?????????????????????????? | | ?# """" % #####?????????????????????????? | | ?# % #?????????????????????????????? | | ?# *%!#?????????????????????????????? | | ?? "" " #?????????????????????????????? | | ?? """ """ #?????????????????????????????? | | ?# """ """" #?????????????????????????????? | | ?# #?????????????????????????????? | | ? ###?????????????????????????????? | | ???? """" #???????????????????????????????? | | ??????""" ||| #???????????????????????????????? | | ? """" || #???????????????????????????????? | +----------------------------------------------------+ Best States ------------- Heat Dissipation 67 Energy Generation 18 Energy Capacity 250 Matter Stores 300 Matter Capacity 300 Sight Range 16 Terrain Scan Density 10 Armor Coverage 225 Evasion (%) 55 Recoil Reduction 2 Item Schematics ----------------- None Robot Schematics ------------------ None Fabricated ------------ Nothing Alien Tech Used ----------------- None Achievements -------------- None Challenges ------------ None Game ------ Seed AerolevMediumChronowheel Manual? 0 Play Time 00:18:34 Cumulative 54.4 hours Start 2024.10.28 @ 18:01:11 End 2024.10.28 @ 18:16:46 Sessions 1 Manual Loads 0 Difficulty Rogue Special Mode None Game No. 95 Rogue 95 Adventurer 0 Explorer 0 Win Type - Total 1 Types 1/0/0/0/0/0/0/0/0 Lore% 37 Gallery% 50 Achievement% 43 Wizard Run 0 Options --------- Layout 0 ASCII 0 Keyboard 1 Movement Numpad Keybinds 0 Fullscreen 2 Font 24/Terminus Map View 76x50 Zoom Use 0% Tactical HUD 1 Map Filters NONE Filters NONE Steam 1 RUN: 143089bd-f073-4e21-8e2a-ce0d4b86bd4d